bitfinex/quotes_ETHUSD_20240828
["timestamp","ask_amount","ask_price","bid_price","bid_amount"]
[1724848234445,3.93856,2539.0,2538.7,2.3896]
[1724848234882,7.8772,2539.0,2538.7,2.3896]
[1724848236167,7.87722,2539.0,2538.7,2.3896]
[1724848236558,3.93874,2538.9,2538.7,2.3896]
[1724848236758,4.332734,2538.8,2538.7,2.3896]
[1724848237068,3.93886,2538.8,2538.7,2.3896]
[1724848237893,3.93874,2538.9,2538.7,2.3896]
[1724848238364,3.9385,2539.1,2538.7,2.3896]
[1724848238570,7.87699,2539.1,2538.7,2.3896]
[1724848238901,3.93849,2539.1,2538.8,0.05204138]
[1724848239194,3.93849,2539.1,2538.7,2.4683709]
[1724848239393,3.93856,2539.0,2538.7,2.3896]
[1724848240096,3.93841,2539.1,2538.8,0.05197724]
[1724848240294,3.93841,2539.1,2538.9,2.4849]
[1724848240789,3.93841,2539.1,2539.0,0.0519465]
[1724848241368,4.726072,2539.1,2539.0,0.0519465]
[1724848242260,3.93841,2539.1,2539.0,0.0519465]
[1724848242756,3.93825,2539.2,2539.0,0.0519465]
[1724848243157,7.87658,2539.2,2539.0,0.0519465]
[1724848243454,3.93825,2539.2,2539.0,0.0519465]
[1724848243653,3.93774,2539.6,2539.1,2.308]
[1724848243875,3.93787,2539.5,2539.1,2.308]
[1724848244078,3.93787,2539.5,2539.2,0.05152181]
[1724848244280,3.93787,2539.5,2539.3,2.308]
[1724848244481,3.93771,2539.6,2539.3,2.308]
[1724848244679,0.41232808,2540.1,2539.5,2.308]
[1724848244680,3.93749,2539.7,2539.5,2.308]
[1724848245259,3.93749,2539.7,2539.6,0.05146037]
[1724848245598,3.93725,2539.9,2539.6,0.05146037]
[1724848245906,3.93732,2539.8,2539.6,0.05146037]
[1724848246107,0.58134802,2539.7,2539.6,0.05146037]
[1724848246471,3.93732,2539.8,2539.6,0.05146037]
[1724848247219,4.34930808,2540.1,2539.6,0.05146037]
[1724848247386,3.93698,2540.1,2539.7,2.361]
[1724848247899,3.93698,2540.1,2539.8,0.05069689]
[1724848248218,3.93664,2540.3,2539.9,2.4305]
[1724848248423,4.330304,2540.3,2539.9,2.4305]
[1724848248575,4.330304,2540.3,2540.0,0.05044644]
[1724848249113,8.266964,2540.3,2540.0,0.05044644]
[1724848249272,8.266944,2540.3,2540.0,0.05044644]
[1724848249911,4.330304,2540.3,2540.0,0.05044644]
[1724848250573,8.266944,2540.3,2540.0,0.05044644]
[1724848250969,4.330304,2540.3,2540.0,0.05044644]
[1724848251215,4.330304,2540.3,2540.1,19.83]
[1724848251422,3.93664,2540.3,2540.1,19.83]
[1724848251620,3.93663,2540.3,2540.2,0.05030588]
[1724848252417,7.87326,2540.3,2540.2,0.05030588]
[1724848252574,8.660586,2540.3,2540.2,0.05030588]
[1724848253279,3.93634,2540.5,2540.2,0.05030588]
[1724848253479,3.93634,2540.5,2540.3,2.2601]
[1724848253691,3.93638,2540.4,2540.3,2.2601]
[1724848253978,3.93638,2540.4,2540.3,0.05012577]
[1724848254473,3.93662,2540.3,2540.1,19.83]
[1724848254709,3.93669,2540.2,2540.1,19.83]
[1724848255377,3.93657,2540.3,2540.1,19.83]
[1724848255577,3.93657,2540.3,2540.2,2.486]
[1724848256420,3.9364,2540.4,2540.2,2.486]
[1724848256582,0.41457842,2540.3,2540.2,2.486]
[1724848257900,0.41457842,2540.3,2540.2,22.316]
[1724848258103,3.93616,2540.6,2540.3,2.4047]
[1724848258377,0.41457842,2540.5,2540.3,2.4047]
[1724848258577,0.41457842,2540.5,2540.4,22.05347]
[1724848258820,0.41217803,2540.9,2540.7,3.93592]
[1724848259019,0.41217803,2540.9,2540.8,2.2527]
[1724848259179,0.39545371,2540.9,2540.8,2.2527]
[1724848259380,4.33106371,2540.9,2540.8,2.2527]
[1724848259705,3.93561,2540.9,2540.8,2.2527]
[1724848259879,3.93561,2540.9,2540.6,2.3724]
[1724848259880,3.93592,2540.7,2540.6,2.3724]
[1724848260073,4.33137371,2540.7,2540.6,0.0487888]
[1724848260340,4.33137371,2540.7,2540.4,2.3724]
[1724848260529,0.40577674,2540.6,2540.5,0.04720735]
[1724848260920,4.34184674,2540.6,2540.5,0.04720735]
[1724848261368,8.27791674,2540.6,2540.5,0.04720735]
[1724848261517,9.49928641,2540.6,2540.5,0.04720735]
[1724848261718,3.93659,2540.3,2540.1,2.321]
[1724848261941,0.40577674,2540.2,2540.1,2.321]
[1724848262325,8.27915674,2540.2,2540.1,2.321]
[1724848263521,3.93747,2539.7,2539.6,2.4177]
[1724848263723,4.34961861,2539.7,2539.6,2.4177]
[1724848263921,8.28708861,2539.7,2539.6,2.4177]
[1724848264244,0.36214861,2539.7,2539.6,2.65947]
[1724848264561,0.36214861,2539.7,2539.6,2.4177]
[1724848264730,3.93765,2539.6,2539.3,2.462]
[1724848264938,0.40963633,2539.5,2539.3,2.462]
[1724848265134,0.40963633,2539.5,2539.3,4.6912]
[1724848265340,7.87542,2539.6,2539.3,4.6912]
[1724848265537,3.9378,2539.5,2539.3,2.462]
[1724848265855,0.40963633,2539.4,2539.3,2.462]
[1724848266468,4.34756633,2539.4,2539.3,22.292]
[1724848267948,8.28549633,2539.4,2539.3,22.292]
[1724848268689,4.34756633,2539.4,2539.3,19.83]
[1724848268901,0.40963633,2539.4,2539.3,24.33684]
[1724848269181,0.40963633,2539.4,2539.3,24.38501875]
[1724848269384,0.39424412,2539.4,2539.3,24.38501875]
[1724848269749,7.87421,2540.0,2539.4,2.3572]
[1724848269990,4.33148412,2539.9,2539.4,3.61781107]
[1724848270153,0.39424412,2539.8,2539.4,3.61781107]
[1724848270368,0.38686346,2539.7,2539.6,2.3572]
[1724848270550,0.38686346,2539.7,2539.6,2.40533267]
[1724848270749,0.38686346,2539.7,2539.6,3.34750226]
[1724848270946,4.32388346,2540.0,2539.6,2.4840748]
[1724848271182,0.38686346,2539.9,2539.6,2.4840748]
[1724848271346,0.38686346,2539.9,2539.7,19.83]
[1724848271577,4.32410346,2539.9,2539.8,0.04810196]
[1724848274185,8.26134346,2539.9,2539.8,0.04810196]
[1724848277414,8.26134346,2539.9,2539.8,19.87810196]
[1724848278197,0.38686346,2539.9,2539.8,19.87810196]
[1724848278519,4.32341011,2539.9,2539.8,22.10163216]
[1724848278815,8.26057011,2539.9,2539.8,19.87810196]
[1724848280027,12.19773011,2539.9,2539.8,19.87810196]
[1724848280189,13.41750312,2539.9,2539.8,19.87810196]
[1724848280917,16.41750312,2539.9,2539.8,19.87810196]
[1724848281084,20.35466312,2539.9,2539.8,19.87810196]
[1724848283437,20.35466312,2539.9,2539.8,0.04810196]
[1724848283810,20.35466312,2539.9,2539.3,19.83]
[1724848283811,7.87586,2539.4,2539.3,19.83]
[1724848284137,8.28091046,2539.4,2539.3,19.83]
[1724848285393,4.34298046,2539.4,2539.3,19.83]
[1724848285831,8.28091046,2539.4,2539.3,19.83]
[1724848286228,4.34298046,2539.4,2539.3,19.83]
[1724848287202,8.28091046,2539.4,2539.3,22.05576]
[1724848287435,4.34298046,2539.4,2539.3,19.83]
[1724848288710,0.40505046,2539.4,2539.3,19.83]
[1724848289334,0.40505046,2539.4,2539.3,22.2845]
[1724848289647,0.38624732,2539.4,2539.3,24.906788]
[1724848289942,0.38624732,2539.5,2539.3,24.906788]
[1724848290323,3.93779,2539.5,2539.3,24.906788]
[1724848290539,3.93793,2539.4,2539.3,24.906788]
[1724848290703,3.93793,2539.4,2539.3,22.2845]
[1724848291256,7.87586,2539.4,2539.3,22.2845]
[1724848291844,3.93793,2539.4,2539.3,19.83]
[1724848293414,3.93793,2539.4,2539.3,22.03919]
[1724848294251,3.93793,2539.4,2539.3,19.83]
[1724848294718,7.87586,2539.4,2539.3,19.83]
[1724848295061,3.93793,2539.4,2539.3,19.83]
[1724848295634,3.93768,2539.6,2539.3,19.83]
[1724848295836,3.93768,2539.6,2539.4,2.20919]
[1724848296049,3.93768,2539.6,2539.5,2.4181]
[1724848296721,3.93756,2539.7,2539.5,2.4181]
[1724848296925,7.87515,2539.7,2539.5,2.4181]
[1724848297124,3.93755,2539.7,2539.5,3.68196107]
[1724848297325,7.87512,2539.7,2539.5,3.68196107]
[1724848297635,3.93755,2539.7,2539.5,3.68196107]
[1724848297966,7.8751,2539.7,2539.5,3.68196107]
[1724848298366,3.93762,2539.6,2539.5,3.68196107]
[1724848298661,7.87524,2539.6,2539.5,3.68196107]
[1724848298865,7.87524,2539.6,2539.5,2.4181]
[1724848299066,7.87524,2539.6,2539.5,2.46479371]
[1724848299465,3.93762,2539.6,2539.5,2.46479371]
[1724848299968,7.87524,2539.6,2539.5,2.46479371]
[1724848300121,10.80888261,2539.6,2539.5,0.04669371]
[1724848300463,7.87586,2539.4,2539.3,19.83]
[1724848305404,10.80950261,2539.4,2539.3,19.83]
[1724848305570,21.68536261,2539.4,2539.3,19.83]
[1724848306652,17.74743261,2539.4,2539.3,19.83]
[1724848310061,7.87742,2538.9,2538.8,19.83]
[1724848311664,3.93871,2538.9,2538.8,19.83]
[1724848313361,3.93828,2539.2,2538.9,2.4914]
[1724848313875,3.9381,2539.3,2538.9,2.57016698]
[1724848314177,3.9381,2539.3,2539.1,2.4914]
[1724848314352,3.9381,2539.3,2539.2,0.04545842]
[1724848314949,7.87632,2539.3,2539.2,0.04545842]
[1724848316274,7.87632,2539.3,2539.2,19.87545842]
[1724848316896,10.81103598,2539.3,2539.2,19.87545842]
[1724848324221,3.9381,2539.3,2539.2,22.11214426]
[1724848324365,6.93741,2539.8,2539.3,2.4038]
[1724848324563,3.93763,2539.6,2539.5,2.4038]
[1724848325066,3.93716,2540.0,2539.6,2.4038]
[1724848325270,3.9368,2540.2,2539.7,2.2797]
[1724848325467,3.9368,2540.2,2539.9,2.2797]
[1724848325468,3.93677,2540.2,2539.9,2.2797]
[1724848325679,3.93677,2540.2,2540.1,2.2797]
[1724848326114,3.93677,2540.2,2540.1,2.32523053]
[1724848326482,2.93471598,2540.3,2540.1,22.15523053]
[1724848326672,2.93471598,2540.7,2540.3,2.356]
[1724848326876,3.93548,2541.0,2540.3,2.356]
[1724848327118,3.93623,2540.5,2540.4,19.87484455]
[1724848327466,7.87246,2540.5,2540.4,19.87484455]
[1724848332106,11.80869,2540.5,2540.4,19.87484455]
[1724848332301,13.2830306,2540.5,2540.4,19.87484455]
[1724848335312,7.87246,2540.5,2540.4,22.29314455]
[1724848336941,3.93623,2540.5,2540.4,22.29314455]
[1724848337736,3.93603,2540.7,2540.5,2.306]
[1724848337913,3.93601,2540.7,2540.5,2.306]
[1724848338109,3.93601,2540.7,2540.6,0.04343357]
[1724848338311,7.87204,2540.7,2540.6,0.04343357]
[1724848342983,7.87204,2540.7,2540.6,19.87343357]
[1724848345553,3.93601,2540.7,2540.6,19.87343357]
[1724848346363,3.93601,2540.7,2540.6,24.54077693]
[1724848346878,3.93601,2540.7,2540.6,22.32283357]
[1724848351144,2.93471598,2540.8,2540.6,22.32283357]
[1724848351353,3.93592,2540.7,2540.6,22.32283357]
[1724848352640,7.87184,2540.7,2540.6,22.32283357]
[1724848355684,13.12328897,2540.7,2540.6,19.87343357]
[1724848355849,19.52470897,2540.7,2540.6,19.87343357]
[1724848356048,23.7465116,2540.7,2540.6,19.87343357]
[1724848356261,7.8737,2540.1,2540.0,19.83]
[1724848356556,3.93778,2539.5,2539.4,2.3318]
[1724848357587,0.90972226,2539.5,2538.8,2.4136]
[1724848357769,3.93832,2539.2,2538.8,2.4136]
[1724848357998,5.16012263,2539.2,2538.8,2.4136]
[1724848358153,3.93786,2539.5,2539.0,2.4136]
[1724848358337,3.93803,2539.4,2539.1,0.07875543]
[1724848358569,3.93803,2539.4,2539.1,0.72186097]
[1724848358775,3.93786,2539.5,2539.1,0.07875543]
[1724848358937,3.93764,2539.6,2539.1,0.07875543]
[1724848359284,3.93764,2539.6,2539.1,0.72185697]
[1724848359285,3.93787,2539.5,2539.1,0.72185697]
[1724848359645,3.93809,2539.3,2539.1,0.64310154]
[1724848359844,3.93793,2539.4,2539.1,0.64310154]
[1724848359845,3.93793,2539.4,2539.1,0.07875821]
[1724848360063,3.93793,2539.4,2539.1,0.32799403]
[1724848360666,7.87601,2539.4,2539.1,0.32799403]
[1724848360866,3.93811,2539.3,2539.1,0.32799403]
[1724848361187,3.93811,2539.3,2539.1,0.24923582]
[1724848361473,3.93793,2539.4,2539.1,0.32799403]
[1724848361891,3.93793,2539.4,2539.1,0.24923582]
[1724848362106,3.9381,2539.3,2539.1,0.24923582]
[1724848362313,3.93793,2539.4,2539.1,0.24923582]
[1724848362856,3.93813,2539.3,2539.1,0.24923582]
[1724848363294,3.93813,2539.3,2539.0,2.4136]
[1724848363467,3.93838,2539.2,2539.0,2.4136]
[1724848363795,3.93835,2539.2,2539.0,2.4136]
[1724848364011,3.93803,2539.4,2539.1,0.1202177]
[1724848364296,6.87159592,2539.6,2539.1,0.3615777]
[1724848364795,2.93394592,2539.6,2539.2,2.2677]
[1724848365000,2.93394592,2539.6,2539.3,0.07874872]
[1724848365165,3.93756,2539.7,2539.3,0.07874872]
[1724848365485,7.87514,2539.7,2539.3,0.12017284]
[1724848365733,7.87514,2539.7,2539.3,0.75278412]
[1724848366048,3.93756,2539.7,2539.3,0.75278412]
[1724848367004,3.93764,2539.6,2539.3,0.75278412]
[1724848367210,3.93764,2539.6,2539.3,0.12017284]
[1724848368301,3.93779,2539.5,2539.3,0.04142412]
[1724848368710,3.93779,2539.5,2539.2,2.2677]
[1724848369139,7.87566,2539.5,2539.2,2.2677]
[1724848369363,3.93804,2539.4,2539.2,2.2677]
[1724848370145,3.93779,2539.5,2539.2,2.2677]
[1724848371454,3.93758,2539.7,2539.4,2.4726]
[1724848372336,3.93732,2539.8,2539.4,2.55134924]
[1724848372564,3.0,2539.7,2539.4,2.55134924]
[1724848373177,3.93696,2540.1,2539.6,2.3433]
[1724848373338,3.93696,2540.1,2539.8,2.3433]
[1724848373539,3.93696,2540.1,2539.8,2.42203544]
[1724848374075,3.93693,2540.1,2539.9,0.04209908]
[1724848374279,7.87386,2540.1,2539.9,0.04209908]
[1724848374587,3.93693,2540.1,2539.9,0.04209908]
[1724848374944,7.87386,2540.1,2539.9,0.04209908]
[1724848375182,3.93693,2540.1,2539.9,0.04209908]
[1724848375774,6.87064592,2540.2,2539.9,0.04209908]
[1724848375977,3.0,2540.1,2539.9,0.04209908]
[1724848376180,3.9367,2540.2,2539.9,0.04209908]
[1724848376387,3.9367,2540.2,2540.0,2.4679]
[1724848376582,3.9367,2540.2,2540.1,19.83]
[1724848376767,3.9367,2540.2,2540.1,19.87163901]
[1724848376973,2.93394592,2540.6,2540.1,22.10559291]
[1724848377149,3.9363,2540.5,2540.2,2.5466201]
[1724848377471,3.93601,2540.7,2540.4,2.4679]
[1724848377642,3.93601,2540.7,2540.5,0.12024801]
[1724848379343,3.93576,2540.8,2540.6,19.83]
[1724848379546,3.93576,2540.8,2540.7,19.83]
[1724848379747,8.282091,2541.3,2540.8,2.2773]
[1724848380056,3.93507,2541.3,2541.0,2.2773]
[1724848380260,0.41190858,2541.7,2541.2,2.2773]
[1724848380445,0.005,2541.8,2541.1,19.90869796]
[1724848380446,0.005,2541.8,2541.5,3.93467]
[1724848380645,0.005,2541.8,2541.4,2.2773]
[1724848380646,0.005,2541.8,2541.6,0.07867635]
[1724848380877,0.005,2541.8,2541.7,2.2773]
[1724848381062,0.005,2541.8,2541.7,22.1073]
[1724848381359,0.005,2541.8,2541.7,4.30385597]
[1724848381558,0.005,2541.8,2541.7,2.31670278]
[1724848382187,3.93921,2541.8,2541.7,0.03940278]
[1724848382493,7.87342,2541.8,2541.7,0.03940278]
[1724848382666,3.93454,2541.6,2541.4,2.4442]
[1724848383752,2.93394592,2541.7,2541.1,22.0913]
[1724848383948,6.86863592,2541.5,2541.1,22.0913]
[1724848384261,3.93502,2541.3,2541.1,22.0913]
[1724848386696,7.87013,2541.3,2541.1,22.0913]
[1724848386893,3.93502,2541.3,2541.1,22.0913]
[1724848387493,3.93502,2541.3,2541.2,19.83]
[1724848388057,10.80405592,2541.3,2541.2,19.83]
[1724848388256,8.95049059,2541.3,2541.2,19.83]
[1724848388452,3.93502,2541.3,2541.2,19.83]
[1724848388898,3.93502,2541.3,2541.2,19.86767122]
[1724848390192,3.93484,2541.4,2541.2,22.27407122]
[1724848390563,3.93443,2541.7,2541.3,0.07869489]
[1724848390763,3.93928,2541.8,2541.3,0.07869489]
[1724848391202,3.93453,2541.6,2541.4,0.03767704]
[1724848392769,3.93928,2541.8,2541.4,0.03767704]
[1724848392953,3.93464,2541.6,2541.4,0.03767704]
[1724848393358,3.93464,2541.6,2541.5,19.83]
[1724848393902,3.93464,2541.6,2541.5,19.86697731]
[1724848394062,3.93438,2541.7,2541.5,19.86697731]
[1724848394258,3.93438,2541.7,2541.6,2.4706]
[1724848394466,3.93438,2541.7,2541.6,2.50756198]
[1724848395479,3.93438,2541.7,2541.6,0.03696198]
[1724848396312,3.93923,2541.8,2541.7,2.4035]
[1724848396684,3.93923,2541.8,2541.7,2.44044664]
[1724848397503,7.87353,2541.8,2541.7,0.03694664]
[1724848397668,7.87353,2541.8,2541.5,19.83]
[1724848397669,5.32045559,2541.8,2541.5,19.83]
[1724848397874,3.93923,2541.8,2541.6,0.03674304]
[1724848398871,3.93437,2541.7,2541.6,0.03674304]
[1724848399371,3.93923,2541.8,2541.6,19.86674304]
[1724848399910,0.005,2541.8,2541.7,2.2592]
[1724848400071,0.005,2541.8,2541.7,4.94393135]
[1724848400279,0.005,2541.8,2541.7,4.98068642]
[1724848401167,0.005,2541.8,2541.7,8.91505642]
[1724848401371,0.005,2541.8,2541.7,28.74505642]
[1724848401573,0.005,2541.8,2541.7,32.67942642]
[1724848401811,0.005,2541.9,2541.8,29.95262]
[1724848402114,0.005,2541.9,2541.8,30.81961777]
[1724848402315,0.005,2541.9,2541.8,30.85629366]
[1724848402519,0.005,2542.2,2542.1,11.80125]
[1724848402813,0.005,2542.2,2542.1,15.240575]
[1724848402988,0.005,2542.2,2542.1,11.3424334]
[1724848404188,0.005,2542.2,2542.1,7.4086834]
[1724848404380,0.005,2542.2,2542.1,11.3424334]
[1724848404572,0.005,2542.2,2542.1,3.4749334]
[1724848404773,3.9386,2542.2,2542.1,2.3734616]
[1724848404984,0.005,2542.2,2542.1,2.2948084]
[1724848405215,0.005,2542.2,2542.1,2.37347455]
[1724848405576,3.9386,2542.2,2542.1,2.37347455]
[1724848405776,3.9386,2542.2,2542.1,2.2948084]
[1724848406010,7.8722,2542.2,2542.1,2.2948084]
[1724848406211,7.8722,2542.2,2542.1,0.0356084]
[1724848406380,3.9386,2542.2,2542.1,0.0356084]
[1724848406818,0.005,2542.2,2542.1,0.11427522]
[1724848406994,0.005,2542.2,2542.1,2.89500274]
[1724848407499,0.005,2542.2,2542.1,9.15685274]
[1724848408285,0.005,2542.2,2542.1,32.91560274]
[1724848408488,0.005,2542.2,2542.1,30.6062084]
[1724848409019,0.00041604,2542.2,2542.1,30.0562084]
[1724848410728,0.005,2543.0,2542.5,19.825]
[1724848410924,0.005,2543.0,2542.6,22.1531]
[1724848411238,0.005,2543.0,2542.7,0.07863914]
[1724848411441,3.9374,2543.0,2542.6,22.19678209]
[1724848411602,3.93252,2542.9,2542.8,0.0476114]
[1724848411939,3.93252,2542.9,2542.8,0.04364378]
[1724848412308,3.93252,2542.9,2542.7,0.07864716]
[1724848412514,3.93277,2542.8,2542.6,22.1531]
[1724848412833,6.86648592,2542.9,2542.1,19.825]
[1724848413037,3.93329,2542.4,2542.1,20.125]
[1724848413245,3.933,2542.6,2542.1,20.125]
[1724848413246,7.86612,2542.6,2542.2,2.2412]
[1724848413546,3.933,2542.6,2542.3,0.07865803]
[1724848413717,3.933,2542.6,2542.3,1.0105091]
[1724848414117,7.86606,2542.6,2542.3,0.93185107]
[1724848414312,3.933,2542.6,2542.3,0.93185107]
[1724848414538,3.933,2542.6,2542.1,19.825]
[1724848414539,3.93315,2542.5,2542.1,19.825]
[1724848415553,3.93331,2542.4,2542.1,19.825]
[1724848416446,3.93314,2542.5,2542.1,19.825]
[1724848416637,3.93314,2542.5,2542.2,2.604589]
[1724848417252,3.93329,2542.4,2542.3,19.825]
[1724848417638,7.8672,2542.2,2542.1,19.825]
[1724848417857,7.8675,2542.1,2542.0,19.825]
[1724848419579,3.93361,2542.2,2542.0,19.825]
[1724848420178,3.93355,2542.3,2542.0,19.825]
[1724848420356,3.93355,2542.3,2542.1,2.2934]
[1724848420558,3.9336,2542.2,2542.0,19.825]
[1724848420737,7.8675,2542.1,2542.0,19.825]
[1724848421438,3.93375,2542.1,2542.0,19.825]
[1724848422543,3.93355,2542.3,2542.0,22.0802]
[1724848422743,3.93355,2542.3,2542.0,24.11032945]
[1724848422936,3.93355,2542.3,2542.0,24.09829661]
[1724848423738,3.9336,2542.2,2542.0,24.09829661]
[1724848423959,7.8675,2542.1,2542.0,19.86059661]
[1724848424373,14.80125,2542.1,2542.0,19.86059661]
[1724848424594,10.8675,2542.1,2542.0,19.86059661]
[1724848425377,7.86731,2542.2,2542.0,19.86059661]
[1724848425534,3.93375,2542.1,2542.0,19.86059661]
[1724848426092,3.93336,2542.4,2542.1,2.326]
[1724848426297,3.93336,2542.4,2542.2,0.07866315]
[1724848426594,3.93344,2542.3,2542.2,0.03558129]
[1724848427098,7.86688,2542.3,2542.2,0.03558129]
[1724848427399,3.93323,2542.5,2542.2,2.52268129]
[1724848427605,7.86697,2542.3,2542.0,19.825]
[1724848427893,2.93394592,2542.5,2542.0,19.825]
[1724848427894,3.93375,2542.1,2542.0,19.825]
[1724848428096,7.8675,2542.1,2542.0,19.825]
[1724848429402,10.80144592,2542.1,2542.0,19.825]
[1724848430613,7.8675,2542.1,2542.0,19.825]
[1724848431902,10.80144592,2542.1,2542.0,19.825]
[1724848433491,14.73519592,2542.1,2542.0,19.825]
[1724848433998,14.73519592,2542.1,2542.0,19.86084902]
[1724848435063,10.80144592,2542.1,2542.0,19.86084902]
[1724848435268,7.8675,2542.1,2542.0,19.86084902]
[1724848435726,3.93375,2542.1,2542.0,19.86084902]
[1724848436378,3.93322,2542.5,2542.0,22.08102392]
[1724848436379,2.93394592,2542.5,2542.0,22.08102392]
[1724848436579,3.93315,2542.5,2542.1,19.90366631]
[1724848436786,3.93315,2542.5,2542.3,2.4576]
[1724848436994,3.93329,2542.4,2542.3,2.4576]
[1724848437310,3.93313,2542.6,2542.3,2.49340304]
[1724848437497,7.86622,2542.6,2542.4,0.38249435]
[1724848437694,7.86622,2542.6,2542.5,0.03559914]
[1724848438196,3.93324,2542.5,2542.3,2.4576]
[1724848438577,3.93324,2542.5,2542.3,2.53626016]
[1724848438911,3.93324,2542.5,2542.3,4.6777749]
[1724848439895,3.93329,2542.4,2542.1,19.825]
[1724848440104,3.9336,2542.2,2542.1,19.825]
[1724848440274,7.8672,2542.2,2542.1,19.825]
[1724848440643,7.8672,2542.2,2541.7,2.4638]
[1724848440644,3.93421,2541.8,2541.7,2.4638]
[1724848440866,3.93421,2541.8,2541.2,3.93514]
[1724848441035,3.9346,2541.6,2541.4,2.4029]
[1724848442447,7.86863,2541.8,2541.4,2.4029]
[1724848442760,3.93428,2541.8,2541.5,0.31897522]
[1724848442913,3.93438,2541.7,2541.5,0.31897522]
[1724848443117,3.93452,2541.6,2541.5,0.24029]
[1724848444858,7.86936,2541.5,2541.4,2.4029]
[1724848445025,7.86936,2541.5,2540.9,19.825]
[1724848445026,3.93499,2541.4,2541.1,2.4029]
[1724848445234,3.93499,2541.4,2541.2,0.24029]
[1724848445457,3.93468,2541.5,2541.2,0.24029]
[1724848445764,3.93493,2541.4,2541.2,0.24029]
[1724848445968,3.93499,2541.3,2541.2,0.24029]
[1724848446304,3.93514,2541.2,2541.1,2.4029]
[1724848446928,3.93499,2541.3,2541.1,2.4029]
[1724848447768,3.93514,2541.2,2541.1,2.4029]
[1724848448134,3.93499,2541.3,2541.1,2.4029]
[1724848449149,7.87006,2541.3,2541.1,2.4029]
[1724848449349,3.93499,2541.3,2541.1,2.4029]
[1724848449677,7.8701,2541.3,2541.1,2.4029]
[1724848449845,3.93499,2541.3,2541.2,19.825]
[1724848450390,18.22973559,2541.3,2541.2,19.825]
[1724848450687,21.16368151,2541.3,2541.2,19.825]
[1724848452382,10.86998,2541.3,2541.2,19.825]
[1724848452561,13.80392592,2541.3,2541.2,19.825]
[1724848453782,17.73900592,2541.3,2541.2,19.825]
[1724848455902,10.80392592,2541.3,2541.2,19.825]
[1724848458609,2.93394592,2541.3,2541.2,19.825]
[1724848458821,7.28024575,2541.7,2541.2,22.05204]
[1724848459121,7.28022575,2541.7,2541.3,2.4454]
[1724848459421,6.86841592,2541.7,2541.3,2.52408865]
[1724848459646,2.93394592,2541.5,2541.3,2.52408865]
[1724848459836,2.93394592,2541.5,2541.3,3.77009972]
[1724848459978,6.86840592,2541.7,2541.3,3.77009972]
[1724848460180,2.93394592,2541.7,2541.4,19.825]
[1724848460424,10.80231592,2541.9,2541.5,4.67244]
[1724848460585,6.86810592,2541.9,2541.5,4.75112374]
[1724848460784,6.86810592,2541.9,2541.6,1.24601107]
[1724848461222,10.80226592,2541.9,2541.6,1.24601107]
[1724848461390,2.93394592,2541.9,2541.6,1.24601107]
[1724848461595,6.86779592,2542.1,2541.8,2.4454]
[1724848461785,3.93385,2542.1,2541.9,19.825]
[1724848461983,2.93394592,2542.0,2541.9,19.825]
[1724848462183,6.86785592,2542.0,2541.9,19.825]
[1724848462629,10.80176592,2542.0,2541.9,19.825]
[1724848464628,10.80176592,2542.0,2541.9,22.2535]
[1724848465029,10.80176592,2542.0,2541.9,19.825]
[1724848465426,16.20921651,2542.0,2541.9,19.825]
[1724848466032,12.27530651,2542.0,2541.9,19.825]
[1724848466228,10.80176592,2542.0,2541.9,19.825]
[1724848468145,6.86785592,2542.0,2541.9,19.825]
[1724848469469,10.80176592,2542.0,2541.9,19.825]
[1724848470773,10.80176592,2542.0,2541.5,2.2887]
[1724848470774,3.93439,2541.7,2541.5,2.2887]
[1724848471208,7.8689,2541.7,2541.5,2.2887]
[1724848471364,3.93452,2541.6,2541.5,2.2887]
[1724848472579,6.86816592,2541.8,2541.5,2.2887]
[1724848472763,3.93441,2541.7,2541.5,2.2887]
[1724848472960,3.93422,2541.8,2541.5,5.23707]
[1724848473166,6.86816592,2541.8,2541.6,2.4662]
[1724848473461,3.93437,2541.7,2541.6,2.4662]
[1724848473881,7.86874,2541.7,2541.6,2.4662]
[1724848474089,3.93465,2541.6,2541.4,22.2912]
[1724848474499,3.93437,2541.7,2541.4,22.2912]
[1724848474742,7.86882,2541.7,2541.4,25.25732]
[1724848475802,3.93468,2541.5,2541.4,22.2912]
[1724848476976,3.93463,2541.6,2541.4,22.2912]
[1724848477373,3.93441,2541.7,2541.4,22.2912]
[1724848477582,3.93441,2541.7,2541.4,24.52032]
[1724848478716,3.93454,2541.6,2541.4,24.52032]
[1724848478868,3.93454,2541.6,2541.4,22.2912]
[1724848479309,3.93433,2541.8,2541.4,22.2912]
[1724848479599,3.93437,2541.7,2541.5,19.825]
[1724848483025,3.93418,2541.9,2541.6,2.385]
[1724848483399,6.86786592,2542.0,2541.6,2.385]
[1724848483602,6.86786592,2542.0,2541.6,6.31951]
[1724848483928,10.80135592,2542.2,2541.8,2.385]
[1724848484128,3.93378,2542.1,2541.9,19.825]
[1724848484927,6.86785592,2542.0,2541.9,19.825]
[1724848486491,7.86735,2542.2,2541.9,19.825]
[1724848486730,6.86770592,2542.1,2541.9,19.825]
[1724848487139,2.93394592,2542.1,2541.9,19.825]
[1724848487429,6.86732592,2542.4,2542.0,2.4523]
[1724848487636,6.86732592,2542.4,2542.0,2.53096887]
[1724848488505,6.86732592,2542.4,2542.1,19.825]
[1724848488708,6.86672592,2542.8,2542.3,3.93334]
[1724848488892,6.86672592,2542.8,2542.4,19.825]
[1724848489095,2.93394592,2542.6,2542.4,19.825]
[1724848489860,3.93278,2542.8,2542.4,19.825]
[1724848490169,3.93275,2542.8,2542.4,19.825]
[1724848490646,7.86552,2542.8,2542.4,19.825]
[1724848490845,3.93275,2542.8,2542.4,19.825]
[1724848491347,3.93275,2542.8,2542.4,22.829135]